Workbook

Sheet CashFlow
B1: 122 Derby Ave, New Haven, CT 06513
B2: (2) 2 Bedrooms, (2) 1 Bedrooms, (1) Studio
B4: Monthly Operating Income | C4: As Is | D4: Fully Occupied | E4: Pro Forma
B5: Number of Units | C5: 5 | D5: 5 | E5: 5
B6: Average Monthly Rent per Unit | C6: 1550 | D6: =D7/D5 -> 1470 | E6: 1560
B7: Total Rental Income | C7: =sum(C5*C6) -> 7750 | D7: ='Rent Roll'!D7-450 -> 7350 | E7: ='Rent Roll'!D7 -> 7800
B8: % Vacancy and Credit Losses | C8: 0.8 | D8: 0.03 | E8: 0.03
B9: Total Vacancy Loss | C9: =C8*C7 -> 6200 | D9: 220.5 | E9: 234
B10: Other Monthly Income (laundry, vending, parking, etc.) | D10: 100 | E10: 100
B11: Gross Monthly Operating Income | C11: =C7-C9+C10 -> 1550 | D11: 7229.5 | E11: 7666
B13: Monthly Operating Expenses
B14: Property Management Fees | C14: =C11*0.05 -> 77.5 | D14: 361.475 | E14: 383.3 | F14: 5% Rule of Thumb
B15: Repairs and Maintenance | C15: =C11*0.05 -> 77.5 | D15: 361.475 | E15: 383.3 | F15: 5% Rule of Thumb
B16: Real Estate Taxes | C16: 743.25 | D16: 743.25 | E16: 743.25
B17: Rental Property Insurance | C17: 416.67 | D17: 416.67 | E17: 416.67 | F17: Typically $1000 a unit/year
B18: Landscaping | C18: 100 | D18: 100 | E18: 100
B19: Cleaning
B20: Common Utilities | F20: Common Utiltiies
B21: - Water and Sewer | C21: 50 | D21: 250 | E21: 250
B22: - Garbage | C22: 100 | D22: 100 | E22: 100
B23: - Electric
B24: - Heat | C24: 0 | D24: 0 | E24: 0
B25: Advertising
B26: Monthly Operating Expenses | C26: =SUM(C14:C25) -> 1564.92 | D26: 2332.87 | E26: 2376.52
B28: Net Operating Income (NOI)
B29: Total Annual Operating Income | C29: =C11*12 -> 18600 | D29: 86754 | E29: 91992
B30: Total Annual Operating Expense | C30: =C26*12 -> 18779.04 | D30: 27994.44 | E30: 28518.24
B31: Annual Net Operating Income | C31: =C29-C30 -> -179.04 | D31: 58759.56 | E31: 63473.76
B33: Capitalization Rate and Valuation
B34: Desired Capitalization Rate | C34: 0.065 | D34: 0.0675 | E34: 0.0675
B35: Property Valuation (Offer Price) | C35: =IF(C34=0," - ",C31/C34) -> -2754.461538 | D35: 870512 | E35: 940352
B36: Actual Purchase Price | C36: 575000 | D36: 575000 | E36: 575000
B37: Actual Capitalization Rate | C37: =IF(C36=0," - ",C31/C36) -> -0.000311373913 | D37: 0.1021905391 | E37: 0.1103891478
B39: Loan Information
B40: Down Payment | C40: =C36*0.25 -> 143750 | D40: 143750 | E40: 143750 | F40: 25% Down
B41: Loan Amount | C41: =C36-C40 -> 431250 | D41: 431250 | E41: 431250 | F41: 75% LTV
B42: Acquisition Costs and Loan Fees | C42: =C36*0.0075 -> 4312.5 | D42: 4312.5 | E42: 4312.5 | F42: .75% of Ask Price
B43: Length of Mortgage (years) | C43: 30 | D43: 30 | E43: 30
B44: Annual Interest Rate | C44: 0.0625 | D44: 0.0625 | E44: 0.0625
B45: Initial Investment | C45: =C40+C42 -> 148062.5 | D45: =D40+C58 -> 143750 | E45: 143750
B46: Monthly Mortgage Payment (PI) | C46: =IF(C41=0,0,-PMT(C44/12,C43*12,C41)) -> 2655.280427 | D46: 2655.280427 | E46: 2655.280427
B47: Annual Interest | C47: =IF(C41=0,0,-CUMIPMT(C44/12,C43*12,C41,1,12,0)) -> 26809.99625 | D47: 26809.99625 | E47: 26809.99625
B48: Annual Principal | C48: =IF(C41=0,0,-CUMPRINC(C44/12,C43*12,C41,1,12,0)) -> 5053.368877 | D48: 5053.368877 | E48: 5053.368877
B49: Total Annual Debt Service | C49: =C46*12 -> 31863.36512 | D49: 31863.36512 | E49: 31863.36512
B50: DEBT SERVICE RATIO | C50: =C31/C49 -> -0.005618992197 | D50: 1.844110306 | E50: 1.992060781
B52: Cash Flow and ROI
B53: Total Monthly Cash Flow | C53: =C11-C26-C46 -> -2670.200427 | D53: 2241.349573 | E53: 2634.199573
B54: Total Annual Cash Flow | C54: =C31-C49 -> -32042.40512 | D54: 26896.19488 | E54: 31610.39488
B55: Cash on Cash Return (ROI) | C55: =IF(C45=0," ",C54/C45) -> -0.2164113474 | D55: 0.1871039644 | E55: 0.2198983992
B57: Note: This spreadsheet should only be used for informational and educational purposes. Please verify
B58: calculations and seek professional assistance before making financial decisions.

Sheet Rent Roll
A1: Unit Number | B1: Size | C1: Current Rent | D1: Pro Forma | E1: Notes | F1: Additional
A2: 1 | B2: 1 Bed | D2: 1500 | E2: Vacant | F2: Cleaned out and Ready for Rent
A3: 2 | B3: 1 Bed | D3: 1500 | E3: Vacant | F3: Cleaned out and Ready for Rent
A4: 3 | B4: 2 Bed | C4: 1550 | D4: 1800
A5: 4 | B5: 2 Bed | D5: 1800 | E5: Vacant | F5: Cleaned out and Ready for Rent
A6: 5 | B6: Studio | D6: 1200 | E6: Vacant | F6: Cleaned out and Ready for Rent
B7: Total | C7: =SUM(C2:C6) -> 1550 | D7: 7800
